fUSD/lending_fUSD_20251017
["ID","MTS","AMOUNT","RATE_DAILY","PERIOD"]
[391611002,1760705433902,-501.58960617,0.00014973,2]
[391611004,1760705433912,-500.0,0.00014973,2]
[391611007,1760705433922,-1425.0,0.00014981,2]
[391611009,1760705433936,-245.0,0.00014982,2]
[391611011,1760705433945,-1425.0,0.00014987,2]
[391611013,1760705433955,-481.31895069,0.0001499,2]
[391611015,1760705433965,-150.0,0.00014993,2]
[391611017,1760705433975,-151.0,0.00014997,2]
[391611019,1760705433984,-300.0,0.00014999,2]
[391611021,1760705433993,-194.37245624,0.00014999,2]
[391611023,1760705434003,-188.08175493,0.00014999,2]
[391611025,1760705434012,-469.10866304,0.00014999,2]
[391611027,1760705434021,-1000.0,0.00014999,2]
[391611029,1760705434031,-1172.64654408,0.00014999,5]
[391611031,1760705434041,-2856.0,0.00015,2]
[391611033,1760705434050,-155661.45812861,0.00015,2]
[391611039,1760705437984,-151.0,0.0001486,2]
[391611040,1760705437994,-993.7,0.00015,2]
[391611041,1760705438045,-1393.36,0.00015,2]
[391611042,1760705438056,-854.00691663,0.00015,2]
[391611043,1760705438104,-553.21,0.00015,2]
[391611044,1760705438116,-3582.45485859,0.00015,2]
[391611045,1760705438127,-4424.62287542,0.00015,2]
[391611046,1760705438139,-3796.2,0.00015,2]
[391611131,1760705440048,-61134.91469809,0.00015,2]
[391611132,1760705440058,-79665.38150412,0.00015,2]
[391611133,1760705440070,-500.0,0.00015,2]
[391611134,1760705440237,-1543.2903561,0.00015,2]
[391611141,1760705443096,-52840.0,0.00015,2]
[391611142,1760705443152,-226306.56716534,0.00015,2]
[391611143,1760705443208,-5611.87842174,0.00015,2]
[391611146,1760705446001,-16286.05964214,0.00015,2]
[391611152,1760705486119,5013.7,0.00027397,120]
[391611157,1760706223269,356.9168778,0.00027397,120]
[391611158,1760706320558,-200.0,0.00013555,2]
[391611159,1760706320582,-250.0,0.00013589,2]
[391611160,1760706320610,-500.0,0.00013624,3]
[391611161,1760706320634,-1200.0,0.00013732,2]
[391611162,1760706320656,-2500.0,0.00013733,2]
[391611163,1760706320680,-1765.84944936,0.00013733,2]
[391611164,1760706320704,-500.0,0.0001376,3]
[391611165,1760706320728,-500.0,0.0001376,3]
[391611166,1760706320751,-500.0,0.0001376,3]
[391611167,1760706320774,-1119.19,0.00013922,2]
[391611168,1760706320796,-666.0,0.00013922,3]
[391611169,1760706320822,-1580.12072747,0.00014103,2]
[391611170,1760706320845,-150.0,0.00014163,2]
[391611171,1760706320868,-38568.83982317,0.00014164,2]
[391611172,1760706323914,250.0,0.00013922,7]
[391611173,1760706324179,-13474.85017683,0.00014164,2]
[391611174,1760706324203,-151.0,0.00014249,2]
[391611175,1760706324226,-151.0,0.00014249,2]
[391611176,1760706324251,-668.65185757,0.00014249,2]
[391611177,1760706324276,-151.0,0.00014249,2]
[391611178,1760706324299,-151.0,0.00014249,2]
[391611179,1760706324323,-151.0,0.00014249,2]
[391611180,1760706324348,-275.83588275,0.00014249,2]
[391611181,1760706324372,-9211.34798985,0.00014249,2]
[391611182,1760706324396,-151.0,0.00014249,2]
[391611183,1760706324420,-267.46074303,0.00014249,2]
[391611184,1760706324445,-9552.16786547,0.00014304,2]
[391611185,1760706324471,-9905.5980765,0.00014359,2]
[391611186,1760706324496,-5738.087408,0.00014414,2]
[391611187,1760706329879,-4534.01779733,0.00014414,2]
[391611188,1760706329908,-151.0,0.00014466,2]
[391611189,1760706329937,-10652.17309792,0.00014469,2]
[391611190,1760706329961,-4662.80910475,0.00014524,2]
[391611191,1760706331478,-6383.4943978,0.00014524,2]
[391611192,1760706331847,-11455.01673214,0.00014579,2]
[391611193,1760706331874,-229.86,0.00014631,2]
[391611194,1760706331898,-1931.62887006,0.00014634,2]
[391611195,1760706333361,-9947.22348117,0.00014634,2]
[391611196,1760706333386,-10052.77651883,0.00014689,2]
[391611197,1760706338085,-2265.5933694,0.00014689,2]
[391611198,1760706338112,-151.0,0.00014696,2]
[391611199,1760706338136,-1319.27614073,0.00014699,2]
[391611200,1760706338165,-6264.13048987,0.00014699,2]
[391611201,1760706340068,-10000.0,0.00014699,2]
[391611202,1760706342445,-10000.0,0.00014699,2]
[391611205,1760706527695,160.0,0.000273,120]
[391611206,1760706529089,160.0,0.000273,120]
[391611239,1760706632284,-160.0,0.000146,2]
[391611240,1760706632296,-160.0,0.000146,2]
[391611241,1760706632308,-160.0,0.000146,2]
[391611242,1760706632319,-989.45710554,0.00014699,2]
[391611243,1760706632331,-2906.84289446,0.00014699,2]
[391611244,1760706632344,-760.86143897,0.00014699,2]
[391611245,1760706632358,-531.6387966,0.00014699,2]
[391611246,1760706632372,-1980.01542651,0.00014699,2]
[391611247,1760706632406,-678.50325359,0.00014699,2]
[391611248,1760706632417,-236.87225719,0.000147,3]
[391611357,1760706638069,-263.12774281,0.000147,3]
[391611358,1760706638079,-900.0,0.000147,2]
[391611359,1760706638089,-500.0,0.00014739,3]
[391611360,1760706638099,-500.0,0.00014739,3]
[391611361,1760706638109,-1000.0,0.00014754,2]
[391611362,1760706638119,-2500.0,0.00014754,2]
[391611363,1760706638129,-5730.36040129,0.00014773,2]
[391611364,1760706638180,-435.39881168,0.00014773,2]
[391611365,1760706638192,-634.85613999,0.00014773,2]
[391611366,1760706638202,-6800.61535292,0.00014787,2]
[391611367,1760706638214,-201.61524054,0.00014794,2]
[391611368,1760706638224,-472.68149374,0.00014796,2]
[391611369,1760706638236,-27.31850626,0.00014796,2]
[391611370,1760706638246,-4391.25327529,0.00014801,2]
[391611371,1760706638258,-2409.36207763,0.00014801,2]
[391611372,1760706638267,-303.76155265,0.00014815,2]
[391611373,1760706638279,-500.0,0.00014815,2]
[391611374,1760706638295,-5996.85380027,0.00014815,2]
[391611375,1760706638305,-6800.61535292,0.00014829,2]
[391611376,1760706638315,-150.0,0.00014843,2]
[391611377,1760706638325,-6800.61535292,0.00014844,2]
[391611378,1760706638335,-151.0,0.00014845,2]
[391611379,1760706638345,-668.65185757,0.00014845,2]
[391611381,1760706638354,-9211.34798985,0.00014845,2]
[391611383,1760706638363,-267.46074303,0.00014845,2]
[391611385,1760706638374,-339.85538,0.0001485,2]
[391611387,1760706638384,-6800.61535292,0.00014858,2]
[391611389,1760706638393,-151.0,0.00014859,2]
[391611391,1760706638403,-151.0,0.00014859,2]
[391611394,1760706638412,-192591.1938,0.00014862,2]
[391611397,1760706638421,-6800.61535292,0.00014872,2]
[391611400,1760706638431,-1000.0,0.00014873,2]
[391611403,1760706638442,-200.0,0.0001488,2]
[391611405,1760706638452,-6800.61535292,0.00014886,2]
[391611407,1760706638464,-344.67383976,0.0001489,2]
[391611409,1760706638474,-243.78982431,0.00014897,2]
[391611411,1760706638484,-5000.0,0.00014898,2]
[391611413,1760706638493,-165.56210864,0.000149,2]
[391611415,1760706638503,-6800.61535292,0.000149,2]
[391611417,1760706638513,-222.71183803,0.000149,2]
[391611419,1760706638523,-416.66886798,0.000149,2]
[391611421,1760706638532,-429.26032433,0.000149,2]
[391611423,1760706638541,-9552.16786547,0.000149,2]
[391611425,1760706638551,-695.39793187,0.00014953,2]
[391611427,1760706638561,-250.0,0.00014953,2]
[391611429,1760706638571,-151.0,0.00014953,2]
[391611431,1760706638581,-250.0,0.00014953,2]
[391611433,1760706638590,-250.0,0.00014953,2]
[391611435,1760706638600,-259.58686069,0.00014953,2]
[391611437,1760706638609,-151.0,0.00014953,2]
[391611439,1760706638619,-3000.0,0.00014953,2]
[391611441,1760706638628,-3000.0,0.00014953,2]
[391611443,1760706638638,-3000.0,0.00014953,2]
[391611445,1760706638646,-3000.0,0.00014953,2]
[391611447,1760706638656,-1300.89332276,0.00014953,2]
[391611449,1760706638665,-1000.0,0.00014953,2]
[391611451,1760706638675,-1000.0,0.00014953,2]
[391611453,1760706638684,-1000.0,0.00014953,2]
[391611455,1760706638696,-500.0,0.00014953,2]
[391611457,1760706638705,-322.6107,0.00014953,2]
[391611459,1760706638716,-9905.5980765,0.00014955,2]
[391611461,1760706638726,-151.0,0.00014962,2]
[391611463,1760706638736,-286.066805,0.00014962,2]
[391611465,1760706638745,-151.0,0.00014962,2]
[391611467,1760706638755,-151.0,0.00014962,2]
[391611469,1760706638764,-151.0,0.00014962,2]
[391611471,1760706638774,-166.365828,0.00014962,2]
[391611473,1760706638783,-232.942649,0.00014962,2]
[391611475,1760706638792,-151.0,0.00014962,2]
[391611477,1760706638802,-165.817027,0.00014962,2]
[391611479,1760706638811,-165.817027,0.00014962,2]
[391611481,1760706638821,-151.0,0.00014962,2]
[391611483,1760706638831,-165.817027,0.00014962,2]
[391611485,1760706638841,-151.0,0.00014962,2]
[391611487,1760706638850,-165.817027,0.00014962,2]
[391611489,1760706638861,-151.0,0.00014962,2]
[391611491,1760706638871,-151.0,0.00014962,2]
[391611493,1760706638881,-156.794978,0.00014962,2]
[391611496,1760706638890,-236.6488328,0.00014962,2]
[391611498,1760706638900,-232.019434,0.00014962,2]
[391611500,1760706638910,-151.0,0.00014962,2]
[391611502,1760706638923,-151.0,0.00014962,2]
[391611504,1760706638933,-232.019434,0.00014962,2]
[391611506,1760706638943,-232.019434,0.00014962,2]
[391611508,1760706638953,-232.019434,0.00014962,2]
[391611510,1760706638964,-151.0,0.00014962,2]
[391611512,1760706638975,-151.0,0.00014962,2]
[391611514,1760706638983,-151.0,0.00014962,2]
[391611516,1760706638993,-151.0,0.00014962,2]
[391611518,1760706639006,-151.0,0.00014962,2]
[391611520,1760706639015,-151.0,0.00014962,2]
[391611522,1760706639026,-151.0,0.00014962,2]
[391611524,1760706639036,-151.0,0.00014962,2]
[391611526,1760706639045,-680.24,0.00014962,2]
[391611528,1760706639056,-150.0,0.00014962,2]
[391611529,1760706639065,-150.0,0.00014962,2]
[391611531,1760706639076,-150.0,0.00014962,2]
[391611534,1760706639086,-150.0,0.00014962,2]
[391611536,1760706639096,-150.0,0.00014962,2]
[391611538,1760706639106,-500.0,0.00014962,2]
[391611539,1760706639115,-500.0,0.00014962,2]
[391611542,1760706639125,-150.0,0.00014962,2]
[391611544,1760706639136,-500.0,0.00014962,2]
[391611546,1760706639146,-150.0,0.00014962,2]
[391611548,1760706639155,-500.0,0.00014962,2]
[391611549,1760706639165,-150.0,0.00014962,2]
[391611552,1760706639175,-150.0,0.00014962,2]
[391611553,1760706639185,-85096.58571713,0.00014962,2]
[391611555,1760706639196,-1425.0,0.00014966,2]
[391611558,1760706639206,-500.0,0.00014973,2]
[391611560,1760706639216,-500.93327543,0.00014973,2]
[391611562,1760706639226,-500.0,0.00014973,2]
[391611564,1760706639236,-500.0,0.00014973,2]
[391611566,1760706639246,-500.0,0.00014973,2]
[391611567,1760706639255,-358.26510893,0.00014973,2]
[391611569,1760706639265,-500.0,0.00014973,2]
[391611572,1760706639275,-500.0,0.00014973,2]
[391611574,1760706639284,-500.0,0.00014973,2]
[391611575,1760706639293,-500.0,0.00014973,2]
[391611578,1760706639303,-486.62196651,0.00014973,2]
[391611580,1760706639313,-500.0,0.00014973,2]
[391611582,1760706639322,-500.0,0.00014973,2]
[391611584,1760706639331,-320.87930046,0.0001498,2]
[391611586,1760706639341,-320.87930046,0.00014988,2]
[391611588,1760706639351,-151.0,0.00014989,2]
[391611590,1760706639361,-151.0,0.00014989,2]
[391611592,1760706639371,-151.0,0.00014989,2]
[391611594,1760706639380,-151.0,0.00014989,2]
[391611595,1760706639389,-151.0,0.00014989,2]
[391611598,1760706639399,-151.0,0.00014989,2]
[391611599,1760706639408,-151.0,0.00014989,2]
[391611602,1760706639418,-151.0,0.00014989,2]
[391611604,1760706639427,-151.0,0.00014989,2]
[391611606,1760706639436,-151.0,0.00014989,2]
[391611608,1760706639446,-151.0,0.00014989,2]
[391611610,1760706639455,-151.0,0.00014989,2]
[391611612,1760706639465,-151.0,0.00014989,2]
[391611614,1760706639475,-151.0,0.00014989,2]
[391611616,1760706639485,-151.0,0.00014989,2]
[391611618,1760706639495,-151.0,0.00014989,2]
[391611620,1760706639504,-151.0,0.00014989,2]
[391611622,1760706639514,-151.0,0.00014989,2]
[391611624,1760706639524,-151.0,0.00014989,2]
[391611626,1760706639535,-151.0,0.00014989,2]
[391611628,1760706639545,-151.0,0.00014989,2]
[391611630,1760706639554,-151.0,0.00014989,2]
[391611632,1760706639563,-151.0,0.00014989,2]
[391611634,1760706639573,-151.0,0.00014989,2]
[391611636,1760706639582,-464.429885,0.00014989,2]
[391611638,1760706639592,-151.0,0.00014989,2]
[391611640,1760706639602,-259.938798,0.00014989,2]
[391611642,1760706639612,-151.0,0.00014989,2]
[391611644,1760706639622,-464.429885,0.00014989,2]
[391611646,1760706639631,-274.615737,0.00014989,2]
[391611648,1760706639640,-152.975929,0.00014989,2]
[391611651,1760706639652,-162.011815,0.00014989,2]
[391611653,1760706639661,-274.615737,0.00014989,2]
[391611655,1760706639671,-464.429885,0.00014989,2]
[391611657,1760706639681,-464.429885,0.00014989,2]
[391611658,1760706639690,-274.615737,0.00014989,2]
[391611660,1760706639700,-151.0,0.00014989,2]
[391611663,1760706639710,-151.0,0.00014989,2]
[391611665,1760706639720,-274.615737,0.00014989,2]
[391611667,1760706639730,-151.0,0.00014989,2]
[391611669,1760706639739,-151.0,0.00014989,2]
[391611671,1760706639749,-151.0,0.00014989,2]
[391611673,1760706639758,-151.0,0.00014989,2]
[391611675,1760706639767,-151.0,0.00014989,2]
[391611677,1760706639777,-151.0,0.00014989,2]
[391611679,1760706639786,-151.0,0.00014989,2]
[391611681,1760706639796,-151.0,0.00014989,2]
[391611683,1760706639805,-151.0,0.00014989,2]
[391611685,1760706639815,-151.0,0.00014989,2]
[391611687,1760706639825,-151.0,0.00014989,2]
[391611689,1760706639834,-151.0,0.00014989,2]
[391611691,1760706639844,-151.0,0.00014989,2]
[391611693,1760706639854,-151.0,0.00014989,2]
[391611695,1760706639863,-151.0,0.00014989,2]
[391611697,1760706639873,-151.0,0.00014989,2]
[391611699,1760706639883,-151.0,0.00014989,2]
[391611701,1760706639893,-151.0,0.00014989,2]
[391611720,1760706640160,-151.0,0.00014989,2]
[391611722,1760706640172,-151.0,0.00014989,2]
[391611724,1760706640182,-151.0,0.00014989,2]
[391611726,1760706640192,-151.0,0.00014989,2]
[391611728,1760706640202,-165.817027,0.00014989,2]
[391611730,1760706640212,-165.817027,0.00014989,2]
[391611732,1760706640222,-156.06773,0.00014989,2]
[391611734,1760706640232,-165.817027,0.00014989,2]
[391611737,1760706640243,-151.0,0.00014989,2]
[391611739,1760706640253,-165.817027,0.00014989,2]
[391611741,1760706640263,-151.0,0.00014989,2]
[391611743,1760706640272,-151.0,0.00014989,2]
[391611745,1760706640282,-232.019434,0.00014989,2]
[391611747,1760706640292,-151.0,0.00014989,2]
[391611749,1760706640301,-237.303724,0.00014989,2]
[391611751,1760706640311,-232.019434,0.00014989,2]
[391611753,1760706640320,-232.019434,0.00014989,2]
[391611755,1760706640330,-232.019434,0.00014989,2]
[391611757,1760706640340,-152.562884,0.00014989,2]
[391611759,1760706640349,-151.0,0.00014989,2]
[391611761,1760706640359,-151.0,0.00014989,2]
[391611763,1760706640369,-151.0,0.00014989,2]
[391611765,1760706640379,-151.0,0.00014989,2]
[391611767,1760706640388,-283.675968,0.00014989,2]
[391611769,1760706640398,-151.0,0.00014989,2]
[391611771,1760706640407,-151.0,0.00014989,2]
[391611773,1760706640417,-151.0,0.00014989,2]
[391611775,1760706640426,-151.0,0.00014989,2]
[391611777,1760706640436,-1203.198872,0.00014989,2]
[391611779,1760706640446,-1203.198872,0.00014989,2]
[391611781,1760706640456,-1203.198872,0.00014989,2]
[391611783,1760706640467,-151.0,0.00014989,2]
[391611785,1760706640476,-1203.198872,0.00014989,2]
[391611787,1760706640486,-151.0,0.00014989,2]
[391611789,1760706640496,-151.0,0.00014989,2]
[391611791,1760706640505,-895.309115,0.00014989,2]
[391611793,1760706640515,-151.0,0.00014989,2]
[391611795,1760706640526,-895.309115,0.00014989,2]
[391611797,1760706640536,-344.94657,0.00014989,2]
[391611800,1760706640545,-469.663584,0.00014989,2]
[391611802,1760706640555,-895.309115,0.00014989,2]
[391611804,1760706640564,-344.94657,0.00014989,2]
[391611806,1760706640574,-469.663584,0.00014989,2]
[391611808,1760706640583,-344.94657,0.00014989,2]
[391611810,1760706640592,-895.309115,0.00014989,2]
[391611812,1760706640601,-469.663584,0.00014989,2]
[391611814,1760706640610,-344.94657,0.00014989,2]
[391611816,1760706640620,-469.663584,0.00014989,2]
[391611818,1760706640629,-151.0,0.00014989,2]
[391611820,1760706640639,-151.0,0.00014989,2]
[391611822,1760706640648,-151.0,0.00014989,2]
[391611824,1760706640657,-151.0,0.00014989,2]
[391611826,1760706640667,-303.165835,0.00014989,2]
[391611828,1760706640676,-366.181708,0.00014989,2]
[391611830,1760706640685,-303.165835,0.00014989,2]
[391611832,1760706640695,-366.181708,0.00014989,2]
[391611834,1760706640705,-303.165835,0.00014989,2]
[391611836,1760706640716,-366.181708,0.00014989,2]
[391611838,1760706640726,-303.165835,0.00014989,2]
[391611840,1760706640737,-366.181708,0.00014989,2]
[391611841,1760706640747,-151.0,0.00014989,2]
[391611843,1760706640757,-151.0,0.00014989,2]
[391611845,1760706640766,-151.0,0.00014989,2]
[391611847,1760706640776,-151.0,0.00014989,2]
[391611849,1760706640786,-151.0,0.00014989,2]
[391611851,1760706640797,-151.0,0.00014989,2]
[391611853,1760706640807,-329.592242,0.00014989,2]
[391611855,1760706640817,-151.0,0.00014989,2]
[391611857,1760706640827,-329.592242,0.00014989,2]
[391611859,1760706640837,-329.592242,0.00014989,2]
[391611861,1760706640847,-463.038111,0.00014989,2]
[391611863,1760706640856,-463.038111,0.00014989,2]
[391611865,1760706640866,-329.592242,0.00014989,2]
[391611867,1760706640875,-463.038111,0.00014989,2]
[391611869,1760706640884,-463.038111,0.00014989,2]
[391611871,1760706640894,-151.0,0.00014989,2]
[391611873,1760706640903,-151.0,0.00014989,2]
[391611875,1760706640913,-151.0,0.00014989,2]
[391611877,1760706640926,-151.0,0.00014989,2]
[391611879,1760706640936,-151.0,0.00014989,2]
[391611881,1760706640945,-151.0,0.00014989,2]
[391611883,1760706640955,-151.0,0.00014989,2]
[391611885,1760706640966,-151.0,0.00014989,2]
[391611887,1760706640975,-151.0,0.00014989,2]
[391611889,1760706640985,-1241.925047,0.00014989,2]
[391611891,1760706640996,-151.0,0.00014989,2]
[391611893,1760706641005,-1241.925047,0.00014989,2]
[391611895,1760706641015,-1241.925047,0.00014989,2]
[391611897,1760706641025,-151.0,0.00014989,2]
[391611899,1760706641035,-151.0,0.00014989,2]
[391611901,1760706641045,-1241.925047,0.00014989,2]
[391611903,1760706641055,-151.0,0.00014989,2]
[391611905,1760706641065,-151.0,0.00014989,2]
[391611907,1760706641075,-1241.925047,0.00014989,2]
[391611909,1760706641084,-151.0,0.00014989,2]
[391611911,1760706641094,-151.0,0.00014989,2]
[391611913,1760706641104,-1241.925047,0.00014989,2]
[391611915,1760706641114,-151.0,0.00014989,2]
[391611917,1760706641124,-1241.925047,0.00014989,2]
[391611919,1760706641134,-151.0,0.00014989,2]
[391611921,1760706641144,-1241.925047,0.00014989,2]
[391611923,1760706641153,-886.241695,0.00014989,2]
[391611925,1760706641163,-886.241695,0.00014989,2]
[391611927,1760706641174,-886.241695,0.00014989,2]
[391611929,1760706641184,-886.241695,0.00014989,2]
[391611931,1760706641193,-886.241695,0.00014989,2]
[391611933,1760706641204,-886.241695,0.00014989,2]
[391611935,1760706641214,-1113.030513,0.00014989,2]
[391611937,1760706641224,-1113.030513,0.00014989,2]
[391611939,1760706641233,-886.241695,0.00014989,2]
[391611941,1760706641243,-886.241695,0.00014989,2]
[391611943,1760706641253,-1113.030513,0.00014989,2]
[391611945,1760706641262,-1113.030513,0.00014989,2]
[391611947,1760706641272,-223.392792,0.00014989,2]
[391611949,1760706641282,-1113.030513,0.00014989,2]
[391611952,1760706641292,-1113.030513,0.00014989,2]
[391611954,1760706641302,-1113.030513,0.00014989,2]
[391611956,1760706641312,-1113.030513,0.00014989,2]
[391611958,1760706641321,-493.163082,0.00014989,2]
[391611960,1760706641330,-493.163082,0.00014989,2]
[391611961,1760706641341,-151.0,0.00014989,2]
[391611964,1760706641351,-151.0,0.00014989,2]
[391611966,1760706641362,-493.163082,0.00014989,2]
[391611968,1760706641371,-493.163082,0.00014989,2]
[391611970,1760706641381,-151.0,0.00014989,2]
[391611972,1760706641390,-152.454081,0.00014989,2]
[391611974,1760706641400,-493.163082,0.00014989,2]
[391611976,1760706641410,-493.163082,0.00014989,2]
[391611978,1760706641420,-151.0,0.00014989,2]
[391611980,1760706641429,-151.0,0.00014989,2]
[391611982,1760706641439,-493.163082,0.00014989,2]
[391611984,1760706641449,-493.163082,0.00014989,2]
[391611986,1760706641459,-177.228321,0.00014989,2]
[391611988,1760706641469,-619.666622,0.00014989,2]
[391611990,1760706641478,-177.228321,0.00014989,2]
[391611992,1760706641488,-619.666622,0.00014989,2]
[391611994,1760706641497,-151.0,0.00014989,2]
[391611996,1760706641507,-151.0,0.00014989,2]
[391611998,1760706641516,-177.228321,0.00014989,2]
[391612000,1760706641526,-619.666622,0.00014989,2]
[391612002,1760706641536,-177.228321,0.00014989,2]
[391612004,1760706641546,-619.666622,0.00014989,2]
[391612006,1760706641556,-177.228321,0.00014989,2]
[391612008,1760706641565,-619.666622,0.00014989,2]
[391612010,1760706641575,-177.228321,0.00014989,2]
[391612012,1760706641584,-619.666622,0.00014989,2]
[391612014,1760706641594,-619.666622,0.00014989,2]
[391612016,1760706641603,-619.666622,0.00014989,2]
[391612018,1760706641616,-177.228321,0.00014989,2]
[391612020,1760706641625,-177.228321,0.00014989,2]
[391612022,1760706641635,-151.0,0.00014989,2]
[391612024,1760706641645,-152.747069,0.00014989,2]
[391612026,1760706641655,-151.0,0.00014989,2]
[391612028,1760706641664,-151.0,0.00014989,2]
[391612030,1760706641674,-151.0,0.00014989,2]
[391612032,1760706641684,-151.0,0.00014989,2]
[391612034,1760706641694,-151.0,0.00014989,2]
[391612037,1760706641704,-151.0,0.00014989,2]
[391612039,1760706641714,-151.0,0.00014989,2]
[391612041,1760706641724,-151.0,0.00014989,2]
[391612043,1760706641733,-151.0,0.00014989,2]
[391612045,1760706641743,-151.0,0.00014989,2]
[391612047,1760706641752,-151.0,0.00014989,2]
[391612049,1760706641761,-151.0,0.00014989,2]
[391612051,1760706641771,-936.549258,0.00014989,2]
[391612053,1760706641781,-151.0,0.00014989,2]
[391612055,1760706641790,-936.549258,0.00014989,2]
[391612057,1760706641799,-151.0,0.00014989,2]
[391612059,1760706641808,-151.0,0.00014989,2]
[391612061,1760706641817,-151.0,0.00014989,2]
[391612063,1760706641827,-1161.960682,0.00014989,2]
[391612065,1760706641836,-151.0,0.00014989,2]
[391612067,1760706641847,-936.549258,0.00014989,2]
[391612069,1760706641857,-1161.960682,0.00014989,2]
[391612071,1760706641867,-936.549258,0.00014989,2]
[391612073,1760706641877,-189.048118,0.00014989,2]
[391612075,1760706641886,-151.0,0.00014989,2]
[391612077,1760706641896,-189.048118,0.00014989,2]
[391612079,1760706641905,-151.0,0.00014989,2]
[391612081,1760706641914,-1161.960682,0.00014989,2]
[391612083,1760706641929,-936.549258,0.00014989,2]
[391612085,1760706641939,-191.097755,0.00014989,2]
[391612087,1760706641948,-1161.960682,0.00014989,2]
[391612089,1760706641958,-936.549258,0.00014989,2]
[391612091,1760706641968,-191.097755,0.00014989,2]
[391612093,1760706641977,-189.048118,0.00014989,2]
[391612096,1760706641987,-189.048118,0.00014989,2]
[391612097,1760706641997,-1161.960682,0.00014989,2]
[391612100,1760706642007,-191.097755,0.00014989,2]
[391612102,1760706642029,-936.549258,0.00014989,2]
[391612104,1760706642039,-1161.960682,0.00014989,2]
[391612106,1760706642048,-191.097755,0.00014989,2]
[391612108,1760706642058,-936.549258,0.00014989,2]
[391612110,1760706642068,-189.048118,0.00014989,2]
[391612112,1760706642078,-189.048118,0.00014989,2]
[391612114,1760706642087,-1161.960682,0.00014989,2]
[391612115,1760706642097,-191.097755,0.00014989,2]
[391612116,1760706642108,-1161.960682,0.00014989,2]
[391612117,1760706642118,-191.097755,0.00014989,2]
[391612118,1760706642128,-189.048118,0.00014989,2]
[391612119,1760706642138,-245.060148,0.00014989,2]
[391612120,1760706642148,-189.048118,0.00014989,2]
[391612121,1760706642158,-245.060148,0.00014989,2]
[391612122,1760706642168,-191.097755,0.00014989,2]
[391612123,1760706642178,-191.097755,0.00014989,2]
[391612125,1760706642188,-245.060148,0.00014989,2]
[391612127,1760706642198,-245.060148,0.00014989,2]
[391612129,1760706642208,-245.060148,0.00014989,2]
[391612131,1760706642218,-245.060148,0.00014989,2]
[391612133,1760706642227,-151.0,0.00014989,2]
[391612135,1760706642239,-1178.168654,0.00014989,2]
[391612137,1760706642249,-151.0,0.00014989,2]
[391612139,1760706642258,-245.060148,0.00014989,2]
[391612141,1760706642268,-1178.168654,0.00014989,2]
[391612143,1760706642279,-245.060148,0.00014989,2]
[391612145,1760706642288,-151.0,0.00014989,2]
[391612147,1760706642297,-151.0,0.00014989,2]
[391612149,1760706642307,-151.0,0.00014989,2]
[391612151,1760706642316,-151.0,0.00014989,2]
[391612153,1760706642325,-151.0,0.00014989,2]
[391612155,1760706642335,-151.0,0.00014989,2]
[391612157,1760706642344,-1178.168654,0.00014989,2]
[391612159,1760706642355,-151.0,0.00014989,2]
[391612161,1760706642364,-151.0,0.00014989,2]
[391612164,1760706642374,-1178.168654,0.00014989,2]
[391612166,1760706642383,-815.537987,0.00014989,2]
[391612168,1760706642392,-815.537987,0.00014989,2]
[391612170,1760706642402,-151.0,0.00014989,2]